[Event "Titled Tuesday Blitz August 08 Late 2023"]
[White "Harshavardhan G B"]
[Black "Gaal, Zsoka"]
[WhiteFideId "25059009"]
[BlackFideId "777765"]
[WhiteElo "2806"]
[BlackElo "2483"]
[Result "1-0"]
[Round "9"]
[TimeControl "180+1"]
[Date "2023.08.08"]
[WhiteClock "0:01:45"]
[BlackClock "0:00:45"]
[Board "58"]

1. e4 {[%clk 0:03:00]}  e5 {[%clk 0:02:53]} 2. Nc3 {[%clk 0:02:59]}  Nc6 {[%clk 0:02:50]} 3. Bc4 {[%clk 0:02:52]}  d6 {[%clk 0:02:39]} 4. Nf3 {[%clk 0:02:50]}  Be7 {[%clk 0:02:30]} 5. d4 {[%clk 0:02:48]}  exd4 {[%clk 0:02:24]} 6. Nxd4 {[%clk 0:02:47]}  Nxd4 {[%clk 0:02:25]} 7. Qxd4 {[%clk 0:02:47]}  Bf6 {[%clk 0:02:24]} 8. Qd3 {[%clk 0:02:46]}  Ne7 {[%clk 0:02:25]} 9. O-O {[%clk 0:02:45]}  O-O {[%clk 0:02:24]} 10. Be3 {[%clk 0:02:44]}  g6 {[%clk 0:02:24]} 11. f4 {[%clk 0:02:43]}  Bg7 {[%clk 0:02:22]} 12. Bd4 {[%clk 0:02:42]}  Nc6 {[%clk 0:02:15]} 13. Bxg7 {[%clk 0:02:41]}  Kxg7 {[%clk 0:02:15]} 14. Nd5 {[%clk 0:02:41]}  Be6 {[%clk 0:02:12]} 15. Qc3+ {[%clk 0:02:37]}  f6 {[%clk 0:02:08]} 16. f5 {[%clk 0:02:24]}  Bxd5 {[%clk 0:02:06]} 17. Bxd5 {[%clk 0:02:23]}  Ne5 {[%clk 0:01:59]} 18. Bxb7 {[%clk 0:02:20]}  Rb8 {[%clk 0:01:59]} 19. Bd5 {[%clk 0:02:19]}  c6 {[%clk 0:01:58]} 20. Be6 {[%clk 0:02:19]}  Qb6+ {[%clk 0:01:57]} 21. Kh1 {[%clk 0:02:18]}  Qxb2 {[%clk 0:01:58]} 22. Qd2 {[%clk 0:02:18]}  g5 {[%clk 0:01:54]} 23. Qxd6 {[%clk 0:02:15]}  Qb4 {[%clk 0:01:28]} 24. Qc7+ {[%clk 0:01:52]}  Kh8 {[%clk 0:01:28]} 25. Qxa7 {[%clk 0:01:50]}  Ng4 {[%clk 0:00:48]} 26. h3 {[%clk 0:01:46]}  Ne3 {[%clk 0:00:45]} 27. Qxe3 {[%clk 0:01:45]} 1-0


[Site "https://www.chess.com"]

[Event "Titled Tuesday Blitz August 08 Late 2023"]
[White "Cheer_Down"]
[Black "Tejedor Fuente, Enrique"]
[BlackFideId "2299100"]
[WhiteElo "2474"]
[BlackElo "2718"]
[Result "1-0"]
[Round "9"]
[TimeControl "180+1"]
[Date "2023.08.08"]
[WhiteClock "0:00:07"]
[BlackClock "0:00:00"]
[Board "59"]

1. e4 {[%clk 0:03:00]}  e5 {[%clk 0:02:59]} 2. Nf3 {[%clk 0:03:00]}  Nf6 {[%clk 0:02:58]} 3. Nxe5 {[%clk 0:02:59]}  Qe7 {[%clk 0:02:58]} 4. d4 {[%clk 0:02:35]}  d6 {[%clk 0:02:56]} 5. Nf3 {[%clk 0:02:33]}  Nxe4 {[%clk 0:02:55]} 6. Be2 {[%clk 0:02:33]}  Bf5 {[%clk 0:02:46]} 7. O-O {[%clk 0:02:23]}  Nd7 {[%clk 0:02:47]} 8. c4 {[%clk 0:02:20]}  g6 {[%clk 0:02:45]} 9. Nc3 {[%clk 0:02:15]}  Bg7 {[%clk 0:02:44]} 10. Re1 {[%clk 0:02:10]}  Nxc3 {[%clk 0:02:43]} 11. bxc3 {[%clk 0:02:09]}  O-O {[%clk 0:02:07]} 12. Bd3 {[%clk 0:02:06]}  Qd8 {[%clk 0:02:03]} 13. Bxf5 {[%clk 0:02:05]}  gxf5 {[%clk 0:02:04]} 14. Bg5 {[%clk 0:02:01]}  Bf6 {[%clk 0:02:02]} 15. Bh6 {[%clk 0:01:57]}  Bg7 {[%clk 0:02:01]} 16. Qd2 {[%clk 0:01:43]}  Qf6 {[%clk 0:01:59]} 17. Bg5 {[%clk 0:01:40]}  Qg6 {[%clk 0:01:54]} 18. Nh4 {[%clk 0:01:39]}  Qh5 {[%clk 0:01:52]} 19. Nxf5 {[%clk 0:01:38]}  Rfe8 {[%clk 0:01:53]} 20. h3 {[%clk 0:01:14]}  Nf8 {[%clk 0:01:17]} 21. Ne7+ {[%clk 0:01:02]}  Kh8 {[%clk 0:01:17]} 22. Nd5 {[%clk 0:01:01]}  Ne6 {[%clk 0:00:47]} 23. Bf6 {[%clk 0:01:00]}  Qg6 {[%clk 0:00:44]} 24. Bxg7+ {[%clk 0:00:58]}  Qxg7 {[%clk 0:00:42]} 25. Nf4 {[%clk 0:00:56]}  Rg8 {[%clk 0:00:40]} 26. g3 {[%clk 0:00:54]}  Qh6 {[%clk 0:00:37]} 27. Re4 {[%clk 0:00:49]}  Ng5 {[%clk 0:00:36]} 28. Re3 {[%clk 0:00:31]}  Nxh3+ {[%clk 0:00:34]} 29. Nxh3 {[%clk 0:00:30]}  Qxh3 {[%clk 0:00:35]} 30. Rae1 {[%clk 0:00:30]}  Rg6 {[%clk 0:00:30]} 31. Rf3 {[%clk 0:00:29]}  Rf8 {[%clk 0:00:28]} 32. Re7 {[%clk 0:00:27]}  Kg7 {[%clk 0:00:27]} 33. Qe3 {[%clk 0:00:25]}  h5 {[%clk 0:00:25]} 34. Rxc7 {[%clk 0:00:18]}  Qg4 {[%clk 0:00:21]} 35. Qf4 {[%clk 0:00:16]}  Qe6 {[%clk 0:00:18]} 36. d5 {[%clk 0:00:13]}  Qe1+ {[%clk 0:00:13]} 37. Kg2 {[%clk 0:00:13]}  Qe8 {[%clk 0:00:14]} 38. Rxb7 {[%clk 0:00:12]}  a5 {[%clk 0:00:14]} 39. a4 {[%clk 0:00:11]}  h4 {[%clk 0:00:14]} 40. Qxh4 {[%clk 0:00:10]}  Qxa4 {[%clk 0:00:13]} 41. Qe7 {[%clk 0:00:09]}  Qe8 {[%clk 0:00:07]} 42. Qxe8 {[%clk 0:00:09]}  Rxe8 {[%clk 0:00:07]} 43. Rfxf7+ {[%clk 0:00:10]}  Kg8 {[%clk 0:00:07]} 44. Rbe7 {[%clk 0:00:10]}  Rc8 {[%clk 0:00:05]} 45. Rc7 {[%clk 0:00:09]}  Re8 {[%clk 0:00:05]} 46. Rfe7 {[%clk 0:00:09]}  Rf8 {[%clk 0:00:04]} 47. Red7 {[%clk 0:00:08]}  Rgf6 {[%clk 0:00:03]} 48. f4 {[%clk 0:00:08]}  Rg6 {[%clk 0:00:03]} 49. Kf3 {[%clk 0:00:08]}  Rb8 {[%clk 0:00:02]} 50. Rb7 {[%clk 0:00:08]}  Rc8 {[%clk 0:00:02]} 51. Rdc7 {[%clk 0:00:09]}  Re8 {[%clk 0:00:02]} 52. Ra7 {[%clk 0:00:08]}  Rh6 {[%clk 0:00:02]} 53. Kg4 {[%clk 0:00:08]}  Rg6+ {[%clk 0:00:02]} 54. Kf3 {[%clk 0:00:07]}  Rh6 {[%clk 0:00:02]} 55. f5 {[%clk 0:00:07]}  Rf8 {[%clk 0:00:01]} 56. Kf4 {[%clk 0:00:07]}  Kh8 {[%clk 0:00:01]} 57. g4 {[%clk 0:00:07]}  Rh3 {[%clk 0:00:01]} 58. Kg5 {[%clk 0:00:06]}  Rg8+ {[%clk 0:00:01]} 59. Kf6 {[%clk 0:00:05]}  Rxg4 {[%clk 0:00:01]} 60. Rc8+ {[%clk 0:00:05]}  Rg8 {[%clk 0:00:02]} 61. Rxg8+ {[%clk 0:00:05]}  Kxg8 {[%clk 0:00:03]} 62. Ke6 {[%clk 0:00:05]}  Rxc3 {[%clk 0:00:02]} 63. f6 {[%clk 0:00:04]}  Re3+ {[%clk 0:00:01]} 64. Kxd6 {[%clk 0:00:05]}  Re4 {[%clk 0:00:01]} 65. c5 {[%clk 0:00:05]}  a4 {[%clk 0:00:01]} 66. c6 {[%clk 0:00:05]}  Rc4 {[%clk 0:00:01]} 67. c7 {[%clk 0:00:05]}  Kf7 {[%clk 0:00:01]} 68. Kd7 {[%clk 0:00:05]}  Kxf6 {[%clk 0:00:01]} 69. c8=Q {[%clk 0:00:05]}  Rd4 {[%clk 0:00:01]} 70. d6 {[%clk 0:00:04]}  Ke5 {[%clk 0:00:01]} 71. Qc5+ {[%clk 0:00:04]}  Ke4 {[%clk 0:00:01]} 72. Qxd4+ {[%clk 0:00:05]}  Kxd4 {[%clk 0:00:02]} 73. Rxa4+ {[%clk 0:00:05]}  Kc5 {[%clk 0:00:02]} 74. Ra7 {[%clk 0:00:06]}  Kd5 {[%clk 0:00:02]} 75. Kc7 {[%clk 0:00:07]}  Kc5 {[%clk 0:00:02]} 76. d7 {[%clk 0:00:08]}  Kb5 {[%clk 0:00:02]} 77. Rb7+ {[%clk 0:00:08]}  Kc5 {[%clk 0:00:02]} 78. d8=Q {[%clk 0:00:08]}  Kc4 {[%clk 0:00:02]} 79. Qg8+ {[%clk 0:00:07]}  Kc5 {[%clk 0:00:02]} 80. Qg5+ {[%clk 0:00:07]}  Kc4 {[%clk 0:00:00]} 81. Qb5+ {[%clk 0:00:07]} 1-0


[Site "https://www.chess.com"]

[Event "Titled Tuesday Blitz August 08 Late 2023"]
[White "maksimys18"]
[Black "Fiorito, Joaquin"]
[BlackFideId "180173"]
[WhiteElo "2468"]
[BlackElo "2681"]
[Result "0-1"]
[Round "9"]
[TimeControl "180+1"]
[Date "2023.08.08"]
[WhiteClock "0:00:21"]
[BlackClock "0:00:16"]
[Board "60"]

1. d4 {[%clk 0:03:00]}  Nf6 {[%clk 0:02:59]} 2. Nf3 {[%clk 0:03:00]}  d5 {[%clk 0:03:00]} 3. c4 {[%clk 0:03:00]}  e6 {[%clk 0:03:00]} 4. Nc3 {[%clk 0:03:00]}  c6 {[%clk 0:03:01]} 5. Bg5 {[%clk 0:03:00]}  Be7 {[%clk 0:03:01]} 6. e3 {[%clk 0:03:00]}  Nbd7 {[%clk 0:03:01]} 7. Rc1 {[%clk 0:03:00]}  h6 {[%clk 0:03:02]} 8. Bh4 {[%clk 0:03:00]}  O-O {[%clk 0:03:02]} 9. cxd5 {[%clk 0:03:00]}  exd5 {[%clk 0:03:00]} 10. Bd3 {[%clk 0:03:00]}  Re8 {[%clk 0:02:58]} 11. O-O {[%clk 0:02:59]}  Ne4 {[%clk 0:02:50]} 12. Bxe7 {[%clk 0:02:59]}  Qxe7 {[%clk 0:02:51]} 13. Nd2 {[%clk 0:02:59]}  Nxd2 {[%clk 0:02:50]} 14. Qxd2 {[%clk 0:02:58]}  Nf6 {[%clk 0:02:50]} 15. a3 {[%clk 0:02:57]}  a5 {[%clk 0:02:49]} 16. Na4 {[%clk 0:02:54]}  Bg4 {[%clk 0:02:45]} 17. h3 {[%clk 0:02:47]}  Bh5 {[%clk 0:02:37]} 18. Nb6 {[%clk 0:02:47]}  Rad8 {[%clk 0:02:37]} 19. Qxa5 {[%clk 0:02:40]}  Ne4 {[%clk 0:02:35]} 20. Bxe4 {[%clk 0:02:34]}  Qxe4 {[%clk 0:02:35]} 21. Na4 {[%clk 0:02:31]}  Rd6 {[%clk 0:02:22]} 22. Nc5 {[%clk 0:02:19]}  Qh4 {[%clk 0:02:22]} 23. Qc7 {[%clk 0:02:09]}  Rg6 {[%clk 0:02:21]} 24. Qh2 {[%clk 0:02:04]}  b6 {[%clk 0:02:13]} 25. Nd7 {[%clk 0:01:51]}  Qe4 {[%clk 0:01:59]} 26. Ne5 {[%clk 0:01:47]}  Rg5 {[%clk 0:01:37]} 27. Rxc6 {[%clk 0:01:45]}  f6 {[%clk 0:01:36]} 28. Ng4 {[%clk 0:01:27]}  Bxg4 {[%clk 0:01:15]} 29. hxg4 {[%clk 0:01:27]}  Rxg4 {[%clk 0:01:11]} 30. g3 {[%clk 0:01:00]}  Qg6 {[%clk 0:01:03]} 31. Qg2 {[%clk 0:00:58]}  Kh8 {[%clk 0:00:52]} 32. Rfc1 {[%clk 0:00:49]}  Rxe3 {[%clk 0:00:49]} 33. Qxd5 {[%clk 0:00:27]}  Rgxg3+ {[%clk 0:00:22]} 34. fxg3 {[%clk 0:00:25]}  Qxg3+ {[%clk 0:00:23]} 35. Qg2 {[%clk 0:00:21]}  Qh4 {[%clk 0:00:23]} 36. R6c3 {[%clk 0:00:18]}  Re4 {[%clk 0:00:21]} 37. d5 {[%clk 0:00:16]}  Rg4 {[%clk 0:00:20]} 38. d6 {[%clk 0:00:15]}  Rxg2+ {[%clk 0:00:20]} 39. Kxg2 {[%clk 0:00:16]}  Qe4+ {[%clk 0:00:20]} 40. Kf1 {[%clk 0:00:15]}  Qf4+ {[%clk 0:00:20]} 41. Ke2 {[%clk 0:00:15]}  Qxd6 {[%clk 0:00:19]} 42. R1c2 {[%clk 0:00:15]}  h5 {[%clk 0:00:19]} 43. Rc6 {[%clk 0:00:15]}  Qe5+ {[%clk 0:00:19]} 44. Kd3 {[%clk 0:00:15]}  b5 {[%clk 0:00:20]} 45. R6c5 {[%clk 0:00:15]}  Qg3+ {[%clk 0:00:19]} 46. Kd4 {[%clk 0:00:16]}  h4 {[%clk 0:00:19]} 47. Rxb5 {[%clk 0:00:16]}  Kh7 {[%clk 0:00:17]} 48. a4 {[%clk 0:00:15]}  Qg4+ {[%clk 0:00:16]} 49. Kc3 {[%clk 0:00:15]}  Qxa4 {[%clk 0:00:17]} 50. Rb4 {[%clk 0:00:15]}  Qc6+ {[%clk 0:00:17]} 51. Kb3 {[%clk 0:00:16]}  Qe6+ {[%clk 0:00:17]} 52. Rcc4 {[%clk 0:00:16]}  h3 {[%clk 0:00:16]} 53. Ka3 {[%clk 0:00:16]}  g5 {[%clk 0:00:17]} 54. Rb3 {[%clk 0:00:14]}  Qxc4 {[%clk 0:00:16]} 55. Rxh3+ {[%clk 0:00:14]}  Kg6 {[%clk 0:00:16]} 56. Rc3 {[%clk 0:00:15]}  Qa6+ {[%clk 0:00:15]} 57. Kb3 {[%clk 0:00:16]}  g4 {[%clk 0:00:16]} 58. Kc2 {[%clk 0:00:16]}  f5 {[%clk 0:00:16]} 59. b4 {[%clk 0:00:17]}  f4 {[%clk 0:00:16]} 60. Kb3 {[%clk 0:00:17]}  g3 {[%clk 0:00:16]} 61. b5 {[%clk 0:00:18]}  Qxb5+ {[%clk 0:00:16]} 62. Kc2 {[%clk 0:00:19]}  g2 {[%clk 0:00:16]} 63. Kd2 {[%clk 0:00:19]}  g1=Q {[%clk 0:00:16]} 64. Rc2 {[%clk 0:00:20]}  Qf2+ {[%clk 0:00:16]} 65. Kc3 {[%clk 0:00:21]}  Qbc5+ {[%clk 0:00:15]} 66. Kb3 {[%clk 0:00:21]}  Qfxc2# {[%clk 0:00:16]} 0-1


[Site "https://www.chess.com"]

[Event "Titled Tuesday Blitz August 08 Late 2023"]
[White "Jimenez Martinez, Jose Vicente"]
[Black "Vovk, Orest"]
[WhiteFideId "2264021"]
[BlackFideId "14113490"]
[WhiteElo "2669"]
[BlackElo "2467"]
[Result "0-1"]
[Round "9"]
[TimeControl "180+1"]
[Date "2023.08.08"]
[WhiteClock "0:00:06"]
[BlackClock "0:00:12"]
[Board "61"]

1. d4 {[%clk 0:03:00]}  h6 {[%clk 0:02:58]} 2. c4 {[%clk 0:03:00]}  g5 {[%clk 0:02:57]} 3. Nc3 {[%clk 0:03:01]}  Bg7 {[%clk 0:02:46]} 4. e4 {[%clk 0:02:59]}  c5 {[%clk 0:02:46]} 5. d5 {[%clk 0:02:58]}  Bxc3+ {[%clk 0:02:36]} 6. bxc3 {[%clk 0:02:59]}  d6 {[%clk 0:02:36]} 7. h4 {[%clk 0:02:58]}  Qa5 {[%clk 0:02:36]} 8. Bd2 {[%clk 0:02:49]}  g4 {[%clk 0:02:34]} 9. h5 {[%clk 0:02:49]}  Nf6 {[%clk 0:02:33]} 10. Bd3 {[%clk 0:02:49]}  Nbd7 {[%clk 0:02:26]} 11. f4 {[%clk 0:02:43]}  g3 {[%clk 0:02:09]} 12. Qf3 {[%clk 0:02:33]}  Rg8 {[%clk 0:02:03]} 13. Rh3 {[%clk 0:02:27]}  Nb6 {[%clk 0:01:43]} 14. Rxg3 {[%clk 0:02:27]}  Bg4 {[%clk 0:01:43]} 15. Qf1 {[%clk 0:02:21]}  Nxh5 {[%clk 0:01:42]} 16. Re3 {[%clk 0:02:14]}  O-O-O {[%clk 0:01:35]} 17. Ne2 {[%clk 0:02:02]}  Bxe2 {[%clk 0:01:33]} 18. Qxe2 {[%clk 0:02:02]}  Ng3 {[%clk 0:01:29]} 19. Qf2 {[%clk 0:02:02]}  Nh5 {[%clk 0:01:25]} 20. e5 {[%clk 0:01:56]}  Qa4 {[%clk 0:01:19]} 21. Qh4 {[%clk 0:01:56]}  Ng7 {[%clk 0:01:09]} 22. f5 {[%clk 0:01:46]}  Nxd5 {[%clk 0:01:06]} 23. Rg3 {[%clk 0:01:38]}  dxe5 {[%clk 0:01:00]} 24. Qxh6 {[%clk 0:01:21]}  Nf4 {[%clk 0:00:54]} 25. Bxf4 {[%clk 0:01:06]}  exf4 {[%clk 0:00:54]} 26. Rxg7 {[%clk 0:01:02]}  Rxg7 {[%clk 0:00:53]} 27. Qxg7 {[%clk 0:01:02]}  Rxd3 {[%clk 0:00:52]} 28. Qf8+ {[%clk 0:00:58]}  Rd8 {[%clk 0:00:37]} 29. Qxf7 {[%clk 0:00:55]}  Qc2 {[%clk 0:00:34]} 30. Qe6+ {[%clk 0:00:54]}  Kb8 {[%clk 0:00:30]} 31. Qe5+ {[%clk 0:00:42]}  Ka8 {[%clk 0:00:29]} 32. Kf1 {[%clk 0:00:26]}  f3 {[%clk 0:00:28]} 33. gxf3 {[%clk 0:00:22]}  Rg8 {[%clk 0:00:25]} 34. Qxc5 {[%clk 0:00:15]}  Qg2+ {[%clk 0:00:15]} 35. Ke1 {[%clk 0:00:15]}  Rh8 {[%clk 0:00:08]} 36. Qf2 {[%clk 0:00:10]}  Rh1+ {[%clk 0:00:08]} 37. Ke2 {[%clk 0:00:10]}  Qxf2+ {[%clk 0:00:08]} 38. Kxf2 {[%clk 0:00:11]}  Rxa1 {[%clk 0:00:08]} 39. Ke2 {[%clk 0:00:11]}  Rxa2+ {[%clk 0:00:09]} 40. Ke3 {[%clk 0:00:12]}  Ra6 {[%clk 0:00:09]} 41. Ke4 {[%clk 0:00:12]}  Rf6 {[%clk 0:00:10]} 42. Ke5 {[%clk 0:00:12]}  Kb8 {[%clk 0:00:11]} 43. c5 {[%clk 0:00:12]}  Kc7 {[%clk 0:00:12]} 44. Kd5 {[%clk 0:00:13]}  a5 {[%clk 0:00:11]} 45. Ke5 {[%clk 0:00:06]}  Kc6 {[%clk 0:00:12]} 0-1


[Site "https://www.chess.com"]

[Event "Titled Tuesday Blitz August 08 Late 2023"]
[White "Omariev, Maksim"]
[Black "Eugene, Floryan"]
[WhiteFideId "4193423"]
[BlackFideId "20694784"]
[WhiteElo "2452"]
[BlackElo "2652"]
[Result "1-0"]
[Round "9"]
[TimeControl "180+1"]
[Date "2023.08.08"]
[WhiteClock "0:00:05"]
[BlackClock "0:00:39"]
[Board "62"]

1. g4 {[%clk 0:03:00]}  g5 {[%clk 0:02:53]} 2. Bg2 {[%clk 0:02:57]}  Bg7 {[%clk 0:02:53]} 3. d4 {[%clk 0:02:57]}  h6 {[%clk 0:02:50]} 4. c4 {[%clk 0:02:56]}  d6 {[%clk 0:02:47]} 5. h3 {[%clk 0:02:55]}  Nd7 {[%clk 0:02:47]} 6. Nc3 {[%clk 0:02:56]}  c6 {[%clk 0:02:47]} 7. e4 {[%clk 0:02:54]}  e5 {[%clk 0:02:46]} 8. Nge2 {[%clk 0:02:54]}  Ne7 {[%clk 0:02:46]} 9. Be3 {[%clk 0:02:54]}  Ng6 {[%clk 0:02:46]} 10. Ng3 {[%clk 0:02:46]}  Nh4 {[%clk 0:02:45]} 11. O-O {[%clk 0:02:42]}  O-O {[%clk 0:02:41]} 12. d5 {[%clk 0:02:35]}  c5 {[%clk 0:02:39]} 13. a3 {[%clk 0:02:28]}  Re8 {[%clk 0:02:38]} 14. b4 {[%clk 0:02:19]}  b6 {[%clk 0:02:37]} 15. Nf5 {[%clk 0:02:03]}  Nxg2 {[%clk 0:02:22]} 16. Kxg2 {[%clk 0:02:04]}  Nf8 {[%clk 0:02:22]} 17. f3 {[%clk 0:01:05]}  Ng6 {[%clk 0:02:21]} 18. Rb1 {[%clk 0:00:57]}  h5 {[%clk 0:02:11]} 19. Ne2 {[%clk 0:00:54]}  h4 {[%clk 0:02:10]} 20. Qd2 {[%clk 0:00:43]}  Bf6 {[%clk 0:02:10]} 21. bxc5 {[%clk 0:00:33]}  bxc5 {[%clk 0:02:07]} 22. Rb3 {[%clk 0:00:33]}  Ba6 {[%clk 0:02:06]} 23. Qc3 {[%clk 0:00:28]}  Rb8 {[%clk 0:02:05]} 24. Rfb1 {[%clk 0:00:28]}  Qc7 {[%clk 0:02:04]} 25. Qb2 {[%clk 0:00:19]}  Rxb3 {[%clk 0:01:59]} 26. Qxb3 {[%clk 0:00:19]}  Nf8 {[%clk 0:01:52]} 27. Bd2 {[%clk 0:00:17]}  Nd7 {[%clk 0:01:52]} 28. Nc3 {[%clk 0:00:15]}  Rb8 {[%clk 0:01:52]} 29. Qa2 {[%clk 0:00:15]}  Rxb1 {[%clk 0:01:51]} 30. Nxb1 {[%clk 0:00:16]}  Nb6 {[%clk 0:01:47]} 31. Ne3 {[%clk 0:00:14]}  Qd7 {[%clk 0:01:45]} 32. Qb3 {[%clk 0:00:12]}  Qa4 {[%clk 0:01:45]} 33. Qxa4 {[%clk 0:00:11]}  Nxa4 {[%clk 0:01:46]} 34. Ba5 {[%clk 0:00:10]}  Kf8 {[%clk 0:01:38]} 35. Bc7 {[%clk 0:00:08]}  Be7 {[%clk 0:01:37]} 36. Nd2 {[%clk 0:00:07]}  Ke8 {[%clk 0:01:32]} 37. Bb8 {[%clk 0:00:07]}  Kd7 {[%clk 0:01:30]} 38. Nf5 {[%clk 0:00:08]}  Bd8 {[%clk 0:01:30]} 39. Bxd6 {[%clk 0:00:07]}  Ba5 {[%clk 0:01:30]} 40. Nb3 {[%clk 0:00:07]}  Bb6 {[%clk 0:01:23]} 41. Bxe5 {[%clk 0:00:05]}  Bxc4 {[%clk 0:01:23]} 42. Nd2 {[%clk 0:00:06]}  Bd3 {[%clk 0:01:18]} 43. Bf6 {[%clk 0:00:06]}  c4 {[%clk 0:01:17]} 44. Bxg5 {[%clk 0:00:05]}  c3 {[%clk 0:01:17]} 45. Nb3 {[%clk 0:00:06]}  c2 {[%clk 0:01:15]} 46. Nc1 {[%clk 0:00:06]}  Bc4 {[%clk 0:01:15]} 47. Ne3 {[%clk 0:00:06]}  Ba6 {[%clk 0:01:05]} 48. Nxc2 {[%clk 0:00:06]}  Nc3 {[%clk 0:01:00]} 49. Bxh4 {[%clk 0:00:06]}  Nd1 {[%clk 0:00:55]} 50. Bg3 {[%clk 0:00:05]}  Ne3+ {[%clk 0:00:53]} 51. Nxe3 {[%clk 0:00:04]}  Bxe3 {[%clk 0:00:53]} 52. Nb3 {[%clk 0:00:05]}  Bc4 {[%clk 0:00:53]} 53. Na5 {[%clk 0:00:04]}  Bb5 {[%clk 0:00:54]} 54. Bf2 {[%clk 0:00:05]}  Bc1 {[%clk 0:00:54]} 55. Nc6 {[%clk 0:00:02]}  a6 {[%clk 0:00:52]} 56. Ne5+ {[%clk 0:00:02]}  Ke7 {[%clk 0:00:51]} 57. Nc6+ {[%clk 0:00:01]}  Kd7 {[%clk 0:00:51]} 58. Ne5+ {[%clk 0:00:02]}  Kd6 {[%clk 0:00:52]} 59. Nxf7+ {[%clk 0:00:01]}  Ke7 {[%clk 0:00:53]} 60. Ne5 {[%clk 0:00:01]}  Bxa3 {[%clk 0:00:54]} 61. Ng6+ {[%clk 0:00:02]}  Kf6 {[%clk 0:00:54]} 62. Nf4 {[%clk 0:00:02]}  Kg5 {[%clk 0:00:54]} 63. Ne2 {[%clk 0:00:02]}  Bxe2 {[%clk 0:00:54]} 64. Be3+ {[%clk 0:00:03]}  Kh4 {[%clk 0:00:52]} 65. e5 {[%clk 0:00:04]}  Bc4 {[%clk 0:00:52]} 66. d6 {[%clk 0:00:04]}  Be6 {[%clk 0:00:52]} 67. f4 {[%clk 0:00:04]}  Bd5+ {[%clk 0:00:52]} 68. Kh2 {[%clk 0:00:04]}  Bc5 {[%clk 0:00:39]} 69. Bxc5 {[%clk 0:00:04]}  Bg2 {[%clk 0:00:39]} 70. Bf2# {[%clk 0:00:05]} 1-0


[Site "https://www.chess.com"]

[Event "Titled Tuesday Blitz August 08 Late 2023"]
[White "Fisher_TheGalactic"]
[Black "Kubatko, Ivan"]
[BlackFideId "24111473"]
[WhiteElo "2639"]
[BlackElo "2456"]
[Result "0-1"]
[Round "9"]
[TimeControl "180+1"]
[Date "2023.08.08"]
[WhiteClock "0:00:23"]
[BlackClock "0:00:18"]
[Board "63"]

1. e4 {[%clk 0:03:00]}  d5 {[%clk 0:02:57]} 2. exd5 {[%clk 0:02:56]}  Qxd5 {[%clk 0:02:40]} 3. Nc3 {[%clk 0:02:55]}  Qa5 {[%clk 0:02:39]} 4. Nf3 {[%clk 0:02:53]}  Nf6 {[%clk 0:02:38]} 5. Bc4 {[%clk 0:02:50]}  Bg4 {[%clk 0:02:36]} 6. O-O {[%clk 0:02:50]}  Nc6 {[%clk 0:02:35]} 7. d3 {[%clk 0:02:47]}  Ne5 {[%clk 0:02:13]} 8. Bf4 {[%clk 0:01:58]}  Nxf3+ {[%clk 0:01:32]} 9. gxf3 {[%clk 0:01:59]}  Bh3 {[%clk 0:01:30]} 10. Re1 {[%clk 0:01:57]}  e6 {[%clk 0:01:29]} 11. Bg3 {[%clk 0:01:55]}  O-O-O {[%clk 0:01:26]} 12. Qe2 {[%clk 0:01:52]}  Bb4 {[%clk 0:01:23]} 13. a3 {[%clk 0:01:36]}  Bxc3 {[%clk 0:01:22]} 14. bxc3 {[%clk 0:01:36]}  Nd5 {[%clk 0:01:11]} 15. Bxd5 {[%clk 0:01:29]}  Qxd5 {[%clk 0:01:10]} 16. Rab1 {[%clk 0:01:26]}  h5 {[%clk 0:01:04]} 17. c4 {[%clk 0:01:25]}  Qc6 {[%clk 0:01:04]} 18. Qe4 {[%clk 0:01:17]}  h4 {[%clk 0:00:51]} 19. Qxc6 {[%clk 0:01:13]}  bxc6 {[%clk 0:00:50]} 20. Bf4 {[%clk 0:01:14]}  g5 {[%clk 0:00:47]} 21. Be3 {[%clk 0:01:09]}  g4 {[%clk 0:00:43]} 22. fxg4 {[%clk 0:01:06]}  Bxg4 {[%clk 0:00:38]} 23. Bxa7 {[%clk 0:01:03]}  Rhg8 {[%clk 0:00:37]} 24. Kf1 {[%clk 0:00:53]}  Kd7 {[%clk 0:00:30]} 25. Re3 {[%clk 0:00:49]}  Ra8 {[%clk 0:00:24]} 26. Bc5 {[%clk 0:00:50]}  Ra5 {[%clk 0:00:23]} 27. Bb4 {[%clk 0:00:50]}  Rf5 {[%clk 0:00:23]} 28. d4 {[%clk 0:00:35]}  h3 {[%clk 0:00:20]} 29. Rbb3 {[%clk 0:00:34]}  Bh5 {[%clk 0:00:19]} 30. Rxh3 {[%clk 0:00:32]}  Rg4 {[%clk 0:00:16]} 31. Rbd3 {[%clk 0:00:29]}  Ke8 {[%clk 0:00:12]} 32. Rhg3 {[%clk 0:00:29]}  Re4 {[%clk 0:00:11]} 33. Be1 {[%clk 0:00:29]}  Be2+ {[%clk 0:00:09]} 34. Kg2 {[%clk 0:00:28]}  Bxd3 {[%clk 0:00:10]} 35. Rg8+ {[%clk 0:00:28]}  Kd7 {[%clk 0:00:10]} 36. cxd3 {[%clk 0:00:14]}  Rxe1 {[%clk 0:00:10]} 37. Kg3 {[%clk 0:00:12]}  Rd1 {[%clk 0:00:09]} 38. h4 {[%clk 0:00:07]}  Rxd3+ {[%clk 0:00:09]} 39. Kg4 {[%clk 0:00:07]}  Rxd4+ {[%clk 0:00:09]} 40. Kg3 {[%clk 0:00:06]}  Rd3+ {[%clk 0:00:09]} 41. Kg4 {[%clk 0:00:07]}  Rd4+ {[%clk 0:00:09]} 42. Kg3 {[%clk 0:00:07]}  Rxc4 {[%clk 0:00:10]} 43. h5 {[%clk 0:00:07]}  Rc3+ {[%clk 0:00:11]} 44. Kg4 {[%clk 0:00:07]}  Rc1 {[%clk 0:00:10]} 45. Kh3 {[%clk 0:00:01]}  Rh1+ {[%clk 0:00:07]} 46. Kg4 {[%clk 0:00:02]}  Rhxh5 {[%clk 0:00:07]} 47. f4 {[%clk 0:00:01]}  Rh1 {[%clk 0:00:06]} 48. Kf3 {[%clk 0:00:02]}  Ra1 {[%clk 0:00:05]} 49. Ke4 {[%clk 0:00:03]}  Rxa3 {[%clk 0:00:05]} 50. Rb8 {[%clk 0:00:03]}  Ra4+ {[%clk 0:00:05]} 51. Ke3 {[%clk 0:00:04]}  Ra3+ {[%clk 0:00:05]} 52. Ke4 {[%clk 0:00:04]}  Raa5 {[%clk 0:00:06]} 53. Rb4 {[%clk 0:00:04]}  Rad5 {[%clk 0:00:07]} 54. Rc4 {[%clk 0:00:04]}  c5 {[%clk 0:00:08]} 55. Rc1 {[%clk 0:00:05]}  Kc6 {[%clk 0:00:08]} 56. Ke3 {[%clk 0:00:05]}  Rd4 {[%clk 0:00:09]} 57. Ra1 {[%clk 0:00:05]}  Rfd5 {[%clk 0:00:10]} 58. Ra6+ {[%clk 0:00:05]}  Kd7 {[%clk 0:00:11]} 59. Ra3 {[%clk 0:00:05]}  Rd3+ {[%clk 0:00:10]} 60. Rxd3 {[%clk 0:00:06]}  Rxd3+ {[%clk 0:00:11]} 61. Kxd3 {[%clk 0:00:07]}  Kd6 {[%clk 0:00:12]} 62. Kc4 {[%clk 0:00:07]}  c6 {[%clk 0:00:12]} 63. Kc3 {[%clk 0:00:08]}  Kd5 {[%clk 0:00:12]} 64. Kd3 {[%clk 0:00:09]}  c4+ {[%clk 0:00:13]} 65. Kc3 {[%clk 0:00:10]}  c5 {[%clk 0:00:13]} 66. Kc2 {[%clk 0:00:11]}  Kd4 {[%clk 0:00:13]} 67. Kd2 {[%clk 0:00:11]}  c3+ {[%clk 0:00:13]} 68. Kc2 {[%clk 0:00:12]}  Ke4 {[%clk 0:00:14]} 69. f5 {[%clk 0:00:11]}  exf5 {[%clk 0:00:14]} 70. Kxc3 {[%clk 0:00:12]}  Ke3 {[%clk 0:00:14]} 71. Kc4 {[%clk 0:00:13]}  f4 {[%clk 0:00:14]} 72. Kxc5 {[%clk 0:00:14]}  Ke2 {[%clk 0:00:15]} 73. Kd5 {[%clk 0:00:15]}  f3 {[%clk 0:00:16]} 74. Kd6 {[%clk 0:00:15]}  f2 {[%clk 0:00:17]} 75. Ke7 {[%clk 0:00:16]}  f1=Q {[%clk 0:00:17]} 76. Kf8 {[%clk 0:00:17]}  f5 {[%clk 0:00:15]} 77. Kg7 {[%clk 0:00:18]}  f4 {[%clk 0:00:16]} 78. Kf8 {[%clk 0:00:19]}  f3 {[%clk 0:00:17]} 79. Kg7 {[%clk 0:00:20]}  f2 {[%clk 0:00:17]} 80. Kf8 {[%clk 0:00:21]}  Qc1 {[%clk 0:00:17]} 81. Kg7 {[%clk 0:00:22]}  Qe3 {[%clk 0:00:18]} 82. Kf8 {[%clk 0:00:23]}  f1=Q+ {[%clk 0:00:19]} 83. Kg7 {[%clk 0:00:23]}  Qg3+ {[%clk 0:00:18]} 84. Kh7 {[%clk 0:00:23]}  Qh1# {[%clk 0:00:18]} 0-1


[Site "https://www.chess.com"]